bitfinex-derivatives/quotes_BTCF0:USTF0_20241120
["timestamp","ask_amount","ask_price","bid_price","bid_amount"]
[1732091170203,0.20591022,92987.0,92986.0,0.35043337]
[1732091170403,0.20591022,92987.0,92986.0,0.45936972]
[1732091171411,0.20591022,92987.0,92986.0,0.74990623]
[1732091171599,0.053722,92983.0,92982.0,0.32073651]
[1732091171924,0.053722,92982.0,92981.0,0.32073651]
[1732091172096,0.053723,92981.0,92979.0,0.32073651]
[1732091172605,0.10248,92987.0,92979.0,0.32073651]
[1732091172606,0.15715322,92980.0,92979.0,0.32073651]
[1732091172804,0.15715322,92980.0,92978.0,0.68160315]
[1732091172805,0.053724,92979.0,92978.0,0.68160315]
[1732091173011,0.10248,92979.0,92978.0,0.3608]
[1732091173311,0.10248,92979.0,92978.0,0.414525]
[1732091175208,0.36136,92992.0,92978.0,0.77564386]
[1732091175412,0.10248,92991.0,92990.0,0.053718]
[1732091175802,0.15714222,93001.0,92988.0,0.68260056]
[1732091175998,0.02150256,93003.0,92998.0,0.053713]
[1732091176212,0.45287,92999.0,92998.0,0.053713]
[1732091176400,0.35039,92999.0,92998.0,0.116913]
[1732091176600,0.45287,92999.0,92998.0,0.116913]
[1732091177200,0.35039,92999.0,92998.0,0.116913]
[1732091177405,0.35039,92999.0,92998.0,0.85193978]
[1732091177714,0.35039,92999.0,92998.0,0.53117922]
[1732091178211,0.35039,92999.0,92998.0,0.116913]
[1732091185414,0.35039,92999.0,92998.0,0.1609794]
[1732091185801,0.35039,92999.0,92998.0,0.26440962]
[1732091186212,0.35039,92999.0,92998.0,1.76440962]
[1732091186418,0.35039,92999.0,92998.0,2.17610053]
[1732091186722,0.15691137,92999.0,92998.0,2.55978369]
[1732091186944,0.005,93012.0,93011.0,0.053706]
[1732091187108,0.10244,93021.0,93020.0,0.0537]
[1732091187308,0.10244,93021.0,93020.0,0.4145]
[1732091189917,0.10244,93028.0,93027.0,0.053696]
[1732091190120,0.00064,93034.0,93031.0,0.053694]
[1732091190414,0.053692,93034.0,93031.0,0.053694]
[1732091190622,0.053693,93033.0,93031.0,0.053694]
[1732091190915,0.10343022,93034.0,93031.0,0.053694]
[1732091191122,0.083893,93032.0,93031.0,0.053694]
[1732091191508,0.0302,93032.0,93031.0,0.053694]
[1732091193613,0.13264,93032.0,93031.0,0.053694]
[1732091194815,0.10244,93032.0,93031.0,0.053694]
[1732091196706,0.10244,93032.0,93028.0,0.3608]
[1732091197206,0.10343022,93040.0,93028.0,0.3608]
[1732091197410,0.10244,93039.0,93028.0,0.3608]
[1732091198127,0.10244,93039.0,93029.0,0.053695]
[1732091198421,0.10244,93039.0,93036.0,0.053691]
[1732091198614,0.10244,93039.0,93028.0,0.3608]
[1732091198806,0.10244,93039.0,93037.0,0.05369]
[1732091199004,0.10244,93039.0,93038.0,0.05369]
[1732091200012,0.13699569,93040.0,93028.0,0.3658]
[1732091200013,0.03356547,93040.0,93036.0,0.3608]
[1732091200216,0.005,93047.0,93046.0,0.053685]
[1732091200415,0.0315,93053.0,93051.0,0.053682]
[1732091200605,0.0315,93053.0,93042.0,0.005]
[1732091200918,0.0986,93052.0,93050.0,0.053683]
[1732091201313,0.0986,93052.0,93051.0,0.053682]
[1732091201615,0.0986,93052.0,93044.0,0.3608]
[1732091201805,0.0986,93052.0,93051.0,0.053682]
[1732091203815,0.03370098,93056.0,93055.0,0.05368]
[1732091203816,0.0986,93056.0,93055.0,0.05368]
[1732091204120,0.3608,93063.0,93062.0,0.053676]
[1732091204121,0.39577148,93063.0,93062.0,0.053676]
[1732091204328,0.4594,93063.0,93062.0,0.053676]
[1732091207527,0.4594,93063.0,93052.0,0.005]
[1732091207725,0.4594,93063.0,93051.0,0.053682]
[1732091207726,0.10343022,93054.0,93051.0,0.053682]
[1732091207934,0.10343022,93054.0,93045.0,0.053686]
[1732091208232,0.10343022,93054.0,93050.0,0.053683]
[1732091208431,0.10343022,93054.0,93044.0,0.3608]
[1732091208914,0.10343022,93054.0,93052.0,0.053682]
[1732091209114,0.10343022,93054.0,93044.0,0.3608]
[1732091209445,0.10343022,93054.0,93051.0,0.053682]
[1732091210332,0.10343022,93054.0,93044.0,0.3608]
[1732091210633,0.053683,93051.0,93046.0,0.053685]
[1732091210814,0.0986,93050.0,93044.0,0.3608]
[1732091211218,0.053688,93042.0,93037.0,0.05869]
[1732091211413,0.10343022,93039.0,93032.0,0.00161224]
[1732091211726,0.0986,93038.0,93032.0,0.05530524]
[1732091212034,0.053693,93033.0,93032.0,0.00161224]
[1732091213318,0.152293,93033.0,93032.0,0.00161224]
[1732091213515,0.053699,93023.0,93022.0,0.005]
[1732091213826,0.053703,93015.0,93014.0,1.5]
[1732091214033,0.152303,93015.0,93014.0,1.5]
[1732091214427,0.053704,93013.0,93008.0,0.24487121]
[1732091214626,0.0986,93015.0,93007.0,0.19116421]
[1732091214931,0.053705,93012.0,93007.0,0.19116421]
[1732091215136,0.0986,93015.0,93007.0,0.19116421]
[1732091215337,0.0986,93015.0,93004.0,1.553709]
[1732091215338,0.053706,93010.0,93005.0,0.19116421]
[1732091215721,0.0986,93015.0,93004.0,1.69116421]
[1732091216229,0.0986,93015.0,93005.0,0.19116421]
[1732091216530,0.0986,93015.0,93004.0,1.5]
[1732091216723,0.00056001,93017.0,93016.0,0.053703]
[1732091216922,0.1046,93017.0,93016.0,0.053703]
[1732091217333,0.1046,93022.0,93015.0,0.46423022]
[1732091217528,0.1046,93022.0,93021.0,0.0537]
[1732091217926,0.1046,93022.0,93021.0,0.24519483]
[1732091218232,0.1046,93023.0,93022.0,0.053699]
[1732091218427,0.1046,93025.0,93022.0,0.22409483]
[1732091218627,0.005,93037.0,93028.0,0.053695]
[1732091218928,0.46543023,93040.0,93029.0,0.0311]
[1732091219130,0.1046,93034.0,93029.0,0.084795]
[1732091220827,0.00056001,93040.0,93038.0,0.05369]
[1732091221142,0.1046,93039.0,93038.0,0.05369]
[1732091222232,0.36168001,93047.0,93045.0,0.053686]
[1732091222837,0.4654,93046.0,93045.0,0.053686]
[1732091223227,0.1046,93046.0,93045.0,0.053686]
[1732091224238,0.00056001,93047.0,93045.0,0.053686]
[1732091224455,0.1046,93051.0,93050.0,0.053683]
[1732091224738,0.1046,93051.0,93050.0,0.414483]
[1732091226831,0.1046,93058.0,93057.0,0.053679]
[1732091232040,0.02149124,93066.0,93065.0,0.053669]
[1732091232240,0.1046,93066.0,93065.0,0.053669]
[1732091232436,0.053671,93062.0,93058.0,0.36184]
[1732091232636,0.053671,93062.0,93059.0,0.053672]
[1732091232838,0.053671,93062.0,93058.0,0.3608]
[1732091233436,0.10343022,93064.0,93059.0,0.053672]
[1732091235840,0.1046,93066.0,93058.0,0.3608]
[1732091236041,0.1046,93066.0,93061.0,0.05367]
[1732091237451,0.1046,93066.0,93058.0,0.3608]
[1732091237657,0.1046,93066.0,93062.0,0.05367]
[1732091238657,0.1046,93066.0,93058.0,0.414472]
[1732091238658,0.053669,93065.0,93058.0,0.414472]
[1732091238947,0.053669,93065.0,93060.0,0.053671]
[1732091241658,0.1046,93066.0,93063.0,0.05367]
[1732091242147,0.1046,93066.0,93058.0,0.3608]
[1732091242352,0.1046,93066.0,93065.0,0.053669]
[1732091243354,0.03447441,93068.0,93067.0,0.053667]
[1732091243543,0.10456,93068.0,93067.0,0.053667]
[1732091246344,0.10456,93068.0,93060.0,0.19139428]
[1732091246546,0.10456,93068.0,93058.0,0.3608]
[1732091246547,0.10456,93068.0,93059.0,0.19139428]
[1732091246852,0.05367,93063.0,93059.0,0.19139428]
[1732091247051,0.05367,93063.0,93059.0,0.053672]
[1732091247253,0.05367,93063.0,93059.0,0.24506628]
[1732091247451,0.053669,93065.0,93058.0,0.55219428]
[1732091247651,0.053669,93065.0,93059.0,0.19139428]
[1732091247845,0.053669,93065.0,93060.0,0.19139428]
[1732091248256,0.05367,93063.0,93061.0,0.19139428]
[1732091248555,0.10456,93068.0,93061.0,0.19139428]
[1732091248856,0.10456,93068.0,93057.0,0.19139428]
[1732091249061,0.10456,93068.0,93056.0,0.19139428]
[1732091249352,0.10456,93068.0,93059.0,0.19184197]
[1732091249353,0.053671,93060.0,93059.0,0.19184197]
[1732091249555,0.46423022,93062.0,93055.0,0.19184197]
[1732091249746,0.053675,93054.0,93052.0,0.19184197]
[1732091250055,0.46423022,93062.0,93051.0,0.19184197]
[1732091250056,0.053676,93052.0,93051.0,0.19184197]
[1732091250357,0.053677,93050.0,93048.0,0.55264197]
[1732091250547,0.053677,93050.0,93048.0,0.3608]
[1732091251161,0.053679,93047.0,93045.0,0.19190147]
[1732091251460,0.15352,93046.0,93028.0,0.25581717]
[1732091251751,0.053689,93030.0,93026.0,0.25742955]
[1732091251954,0.09984,93029.0,93026.0,0.00161238]
[1732091253850,0.05369,93028.0,93026.0,0.00161238]
[1732091256056,0.15712022,93028.0,93026.0,0.00161238]
[1732091257049,0.1920196,93028.0,93026.0,0.00161238]
[1732091257861,0.08858938,93028.0,93026.0,0.00161238]
[1732091258256,0.00042578,93027.0,93026.0,0.00161238]
[1732091259353,0.10026578,93027.0,93026.0,0.00161238]
[1732091264367,0.00042578,93027.0,93023.0,0.3608]
[1732091264553,0.09984,93026.0,93023.0,0.3608]
[1732091264754,0.053692,93025.0,93023.0,0.3608]
[1732091267565,0.09984,93024.0,93023.0,0.3608]
[1732091272567,0.053697,93013.0,93012.0,0.3608]
[1732091272758,0.25700722,93013.0,93012.0,0.3608]
[1732091276468,0.29227161,93013.0,93012.0,0.3608]
[1732091279572,0.03526439,93013.0,93012.0,0.3608]
[1732091279774,0.08176439,93013.0,93012.0,0.3608]
[1732091280678,0.08176439,93013.0,93012.0,1.08178278]
[1732091280862,0.03517535,93023.0,93012.0,1.08178278]
[1732091281070,0.0964,93022.0,93020.0,0.414493]
[1732091281280,0.0964,93022.0,93021.0,0.0328]
[1732091282176,0.0964,93022.0,93021.0,0.086493]
[1732091282369,0.03528429,93027.0,93025.0,0.05369]
[1732091282569,0.03528429,93027.0,93026.0,0.0303]
[1732091282769,0.13168429,93027.0,93026.0,0.0303]
[1732091282965,0.03528429,93027.0,93026.0,0.0303]
[1732091284773,0.00042578,93027.0,93026.0,0.0303]
[1732091285375,0.00042578,93027.0,93026.0,0.08399]
[1732091287690,0.005,93035.0,93034.0,0.053685]
[1732091287872,0.0964,93066.0,93034.0,1.06330537]
[1732091288172,0.053667,93065.0,93060.0,0.61682331]
[1732091288367,0.053667,93065.0,93061.0,0.25602331]
[1732091288571,0.053667,93065.0,93060.0,0.41447]
[1732091289275,0.053668,93064.0,93060.0,0.3608]
[1732091289878,0.0964,93066.0,93060.0,0.3608]
[1732091290481,0.0964,93066.0,93060.0,0.414469]
[1732091291385,0.0214847,93062.0,93060.0,0.414469]
[1732091291572,0.0964,93065.0,93060.0,0.414469]
[1732091291999,0.0964,93065.0,93060.0,0.3608]
[1732091292285,0.0964,93065.0,93063.0,0.053668]
[1732091302092,0.03474202,93069.0,93068.0,0.053665]
[1732091302284,0.09636,93069.0,93068.0,0.053665]
[1732091302590,0.09636,93069.0,93068.0,0.414465]
[1732091305184,0.03367814,93072.0,93068.0,0.3608]
[1732091305393,0.09636,93074.0,93068.0,0.3608]
[1732091305591,0.09636,93075.0,93068.0,0.3608]
[1732091305891,0.005,93082.0,93080.0,0.053658]
[1732091306087,0.09636,93081.0,93080.0,0.414458]
[1732091306292,0.150018,93081.0,93080.0,0.3608]
[1732091309792,0.150018,93081.0,93074.0,0.005]
[1732091309793,0.09636,93081.0,93074.0,0.005]
[1732091309987,0.053663,93075.0,93074.0,0.005]
[1732091310177,0.053663,93075.0,93068.0,0.053667]
[1732091311291,0.053664,93074.0,93068.0,0.053667]
[1732091311487,0.053667,93069.0,93067.0,0.005]
[1732091311687,0.053667,93069.0,93064.0,0.3608]
[1732091312094,0.053667,93069.0,93064.0,0.41447]
[1732091312289,0.09216,93070.0,93064.0,0.3608]
[1732091312592,0.053668,93067.0,93064.0,0.3608]
[1732091313694,0.09216,93070.0,93064.0,0.3608]
[1732091314193,0.005,93079.0,93064.0,0.3608]
[1732091314194,0.053669,93065.0,93064.0,0.3608]
[1732091314391,0.145829,93065.0,93064.0,0.3608]
[1732091316795,0.09216,93065.0,93064.0,0.3608]
[1732091320300,0.13462957,93065.0,93064.0,0.3608]
[1732091322600,0.18829857,93065.0,93064.0,0.3608]
[1732091322899,0.18829857,93065.0,93061.0,0.005]
[1732091322900,0.49542957,93065.0,93061.0,0.26119007]
[1732091323097,0.053672,93060.0,93059.0,0.25619007]
[1732091323286,0.053672,93060.0,93056.0,0.005]
[1732091323287,0.0639,93064.0,93057.0,0.25619007]
[1732091323493,0.16733022,93064.0,93056.0,0.25619007]
[1732091323796,0.15710422,93057.0,93056.0,0.25620423]
[1732091324100,0.15710422,93057.0,93053.0,0.005]
[1732091324101,0.053675,93055.0,93053.0,0.005]
[1732091324302,0.053675,93055.0,93051.0,0.25620423]
[1732091324303,0.053678,93050.0,93048.0,0.26120423]
[1732091324601,0.053678,93050.0,93042.0,0.32002914]
[1732091324602,0.1022283,93049.0,93042.0,0.005]
[1732091324905,0.053682,93043.0,93042.0,0.26116957]
[1732091325101,0.053683,93042.0,93038.0,0.00161223]
[1732091325299,0.053684,93039.0,93038.0,0.00161223]
[1732091326405,0.09216,93043.0,93038.0,0.00161223]
[1732091326600,0.09216,93043.0,93042.0,0.053682]
[1732091326797,0.09216,93043.0,93042.0,0.30966223]
[1732091327203,0.09216,93043.0,93042.0,0.053682]
[1732091327398,0.09216,93043.0,93039.0,0.1034647]
[1732091327399,0.005,93053.0,93052.0,0.053676]
[1732091327604,0.09216,93053.0,93052.0,0.053676]
[1732091327906,0.09216,93053.0,93050.0,0.25589423]
[1732091328105,0.09216,93053.0,93052.0,0.053676]
[1732091329092,0.005,93063.0,93062.0,0.053671]
[1732091329295,0.005,93063.0,93062.0,0.414471]
[1732091329296,0.09216,93063.0,93062.0,0.414471]
[1732091329906,0.09216,93063.0,93062.0,1.13577757]
[1732091330298,0.09216,93063.0,93062.0,0.73450014]
[1732091330496,0.09216,93066.0,93062.0,0.3608]
[1732091330698,0.09216,93066.0,93065.0,0.053669]
[1732091331417,0.09216,93066.0,93063.0,0.3608]
[1732091331418,0.04206059,93073.0,93072.0,0.053665]
[1732091331596,0.13422059,93073.0,93072.0,0.67017481]
[1732091331803,0.09216,93073.0,93072.0,0.414465]
[1732091332104,0.04260187,93078.0,93075.0,0.053663]
[1732091332305,0.09216,93077.0,93076.0,0.053662]
[1732091333402,0.04219376,93081.0,93076.0,0.053662]
[1732091333708,0.09216,93079.0,93077.0,0.053662]
[1732091335107,0.09216,93079.0,93073.0,0.086564]
[1732091335310,0.09216,93079.0,93073.0,0.0329]
[1732091335808,0.09216,93079.0,93072.0,0.3608]
[1732091336000,0.145821,93079.0,93072.0,0.3608]
[1732091336200,0.09216,93078.0,93072.0,0.3608]
[1732091336404,0.09216,93078.0,93077.0,0.053662]
[1732091336606,0.09216,93078.0,93072.0,0.414465]
[1732091336811,0.09216,93078.0,93072.0,0.3608]
[1732091337499,0.053662,93077.0,93072.0,0.3608]
[1732091337700,0.09216,93078.0,93072.0,0.3608]
[1732091338007,0.09216,93078.0,93077.0,0.053662]
[1732091342706,0.09216,93078.0,93073.0,0.053664]
[1732091343013,0.09216,93078.0,93072.0,0.3608]
[1732091343411,0.09216,93078.0,93075.0,0.053663]
[1732091344008,0.09216,93078.0,93076.0,0.053662]
[1732091345611,0.09216,93078.0,93072.0,0.3608]
[1732091346514,0.09216,93078.0,93074.0,0.053664]
[1732091347412,0.053664,93073.0,93072.0,0.3608]
[1732091349120,0.1034647,93075.0,93072.0,0.3608]
[1732091349315,0.1034647,93075.0,93072.0,0.414465]
[1732091349510,0.0317,93077.0,93072.0,0.414465]
[1732091349709,0.053663,93076.0,93072.0,0.3608]
[1732091350012,0.09216,93078.0,93072.0,0.3608]
[1732091350218,0.053664,93073.0,93072.0,0.3608]
[1732091352409,0.145784,93073.0,93072.0,0.3608]
[1732091353009,0.09212,93073.0,93072.0,0.3608]
[1732091353817,0.09212,93073.0,93064.0,0.005]
[1732091354018,0.053669,93065.0,93064.0,0.005]
[1732091354221,0.053669,93065.0,93063.0,0.36184]
[1732091354222,0.05367,93064.0,93063.0,0.3608]
[1732091357116,0.09116733,93067.0,93063.0,0.3608]
[1732091357315,0.0322,93066.0,93063.0,0.3608]
[1732091357930,0.05367,93064.0,93063.0,0.3608]
[1732091361415,0.04189182,93066.0,93063.0,0.3608]
[1732091361632,0.145785,93073.0,93063.0,0.3608]
[1732091361818,0.145785,93073.0,93066.0,0.053668]
[1732091362315,0.053666,93071.0,93066.0,0.053668]
[1732091363122,0.09216,93070.0,93066.0,0.053668]
[1732091363912,0.09216,93070.0,93065.0,0.25568486]
[1732091364120,0.053667,93068.0,93064.0,0.25568486]
[1732091364322,0.053668,93066.0,93064.0,0.25568486]
[1732091365431,0.1249479,93067.0,93064.0,0.25568486]
[1732091365619,0.05367,93064.0,93063.0,0.3608]
[1732091366021,0.05367,93064.0,93055.0,0.005]
[1732091366022,0.1249479,93067.0,93058.0,0.25568486]
[1732091366232,0.053672,93059.0,93058.0,0.25568486]
[1732091366419,0.09216,93059.0,93056.0,0.25568486]
[1732091366621,0.053674,93057.0,93054.0,0.25568486]
[1732091367623,0.053674,93057.0,93053.0,0.61648486]
[1732091368022,0.09216,93059.0,93053.0,0.61648486]
[1732091368023,0.09216,93059.0,93054.0,0.25568486]
[1732091368247,0.053675,93054.0,93053.0,0.61648486]
[1732091368423,0.053675,93054.0,93053.0,0.3608]
[1732091373825,0.06355984,93059.0,93053.0,0.3608]
[1732091374133,0.46482471,93060.0,93057.0,0.053674]
[1732091374134,0.09208,93058.0,93057.0,0.053674]
[1732091374337,0.09208,93058.0,93057.0,0.30935886]
[1732091374526,0.09208,93058.0,93057.0,0.053674]
[1732091374726,0.09208,93058.0,93057.0,0.12276501]
[1732091376735,0.09208,93058.0,93057.0,0.053674]
[1732091377935,0.0421616,93062.0,93061.0,0.053671]
[1732091378145,0.09208,93062.0,93061.0,0.414471]
[1732091379733,0.0264841,93071.0,93070.0,0.053666]
[1732091379934,0.1135641,93071.0,93070.0,0.414466]
[1732091380941,0.15670408,93071.0,93070.0,0.414466]
[1732091381644,0.06462408,93071.0,93070.0,0.414466]
[1732091381946,0.1135641,93071.0,93070.0,0.414466]
[1732091383228,0.0214841,93071.0,93070.0,0.414466]
[1732091383432,0.1135241,93071.0,93070.0,0.414466]
[1732091383844,0.04805025,93071.0,93070.0,0.414466]
[1732091384741,0.06953252,93071.0,93070.0,0.414466]
[1732091386333,0.04805025,93071.0,93070.0,0.414466]
[1732091387654,0.15546377,93079.0,93070.0,0.3608]
[1732091387840,0.09204,93078.0,93073.0,0.24542974]
[1732091388540,0.04203195,93079.0,93078.0,0.053661]
[1732091388747,0.09204,93079.0,93078.0,0.60622674]
[1732091388948,0.10343182,93086.0,93078.0,0.60622674]
[1732091388949,0.10343182,93086.0,93080.0,0.05366]
[1732091389241,0.09204,93081.0,93080.0,0.05366]
[1732091390042,0.09204,93081.0,93078.0,0.55360574]
[1732091390243,0.09204,93081.0,93078.0,0.55256574]
[1732091391448,0.09204,93081.0,93078.0,0.3608]
[1732091391645,0.09204,93081.0,93072.0,0.26070401]
[1732091391646,0.10343182,93079.0,93074.0,0.19176574]
[1732091391959,0.10343182,93079.0,93074.0,0.24542974]
[1732091392645,0.10343182,93079.0,93075.0,0.19176574]
[1732091392861,0.10343182,93079.0,93075.0,0.053663]
[1732091397458,0.10343182,93079.0,93074.0,0.19176574]
[1732091397654,0.09204,93081.0,93079.0,0.053661]
[1732091397856,0.09204,93081.0,93079.0,0.24542674]
[1732091398048,0.09204,93081.0,93080.0,0.19176574]
[1732091398559,0.0214832,93082.0,93081.0,0.05366]
[1732091398763,0.1135232,93082.0,93081.0,0.05366]
[1732091398958,0.0214832,93082.0,93081.0,0.05366]
[1732091399161,0.1135232,93082.0,93081.0,0.05366]
[1732091399462,0.0214832,93082.0,93081.0,0.05366]
[1732091399643,0.1135232,93082.0,93081.0,0.05366]
[1732091401958,0.04281124,93086.0,93085.0,0.053657]
[1732091402245,0.09192,93086.0,93085.0,0.414457]
[1732091402444,0.0214832,93097.0,93093.0,0.053653]
[1732091402653,0.45296,93094.0,93093.0,0.414453]
[1732091402956,0.45296,93094.0,93093.0,0.053653]
[1732091402957,0.13493525,93094.0,93093.0,0.053653]
[1732091403744,0.04301525,93094.0,93093.0,0.053653]
[1732091404046,0.09192,93094.0,93093.0,0.414453]
[1732091409172,0.04289503,93098.0,93097.0,0.053651]
[1732091409465,0.16099138,93098.0,93097.0,0.053651]
[1732091410050,0.13505812,93098.0,93097.0,0.053651]
[1732091412956,0.27066366,93098.0,93097.0,0.053651]
[1732091413667,0.52797142,93098.0,93097.0,0.053651]
[1732091414366,0.33264307,93098.0,93097.0,0.053651]
[1732091417884,0.39236588,93098.0,93097.0,0.053651]
[1732091418067,0.33264307,93098.0,93097.0,0.02396909]
[1732091418269,0.58957618,93098.0,93097.0,0.02396909]
[1732091418476,0.33264307,93098.0,93097.0,0.02396909]
[1732091419380,0.33093209,93098.0,93097.0,0.02396909]
[1732091419789,0.22569658,93098.0,93097.0,0.02396909]
[1732091420000,0.13505812,93098.0,93097.0,0.02396909]
[1732091422183,0.1,93100.0,93099.0,0.053649]
[1732091422499,0.19192,93100.0,93099.0,0.053649]
[1732091428385,0.389536,93100.0,93099.0,0.053649]
[1732091428787,0.38958358,93100.0,93099.0,0.053649]
[1732091430208,0.053651,93096.0,93095.0,0.3608]
[1732091430892,0.37239139,93096.0,93095.0,0.3608]
[1732091431801,0.053654,93091.0,93086.0,0.005]
[1732091431993,0.06907138,93088.0,93082.0,0.053659]
[1732091432191,0.35856042,93083.0,93082.0,0.053659]
[1732091432392,0.35856042,93083.0,93076.0,0.053662]
[1732091432393,0.38821915,93083.0,93076.0,0.053662]
[1732091432603,0.06907138,93077.0,93074.0,0.3624115]
[1732091432793,0.06907138,93075.0,93074.0,0.3624115]
[1732091433100,0.266799,93075.0,93074.0,0.3624115]
[1732091433295,0.19772762,93075.0,93074.0,0.4160755]
[1732091433601,0.54857608,93076.0,93074.0,0.3624115]
[1732091433799,0.45673608,93075.0,93074.0,0.4160755]
[1732091434392,0.19938661,93075.0,93074.0,0.4160755]
[1732091434704,0.45673608,93075.0,93074.0,0.4160755]
[1732091435091,0.13532253,93076.0,93074.0,0.4160755]
[1732091436505,0.09184,93076.0,93074.0,0.4160755]
[1732091437213,0.09184,93076.0,93074.0,0.4155755]
[1732091439103,0.09184,93076.0,93074.0,0.3619115]
[1732091439588,0.11150614,93079.0,93074.0,0.3619115]
[1732091439589,0.09184,93075.0,93074.0,0.3619115]
[1732091440909,0.11150614,93079.0,93074.0,0.3619115]
[1732091441098,0.11150614,93079.0,93066.0,0.005]
[1732091441099,0.053668,93067.0,93066.0,0.005]
[1732091441403,0.053668,93067.0,93063.0,0.55245636]
[1732091441404,0.05367,93064.0,93063.0,0.00108]
[1732091441603,0.22998276,93067.0,93054.0,0.005]
[1732091441604,0.0635,93066.0,93054.0,0.005]
[1732091441808,0.0635,93066.0,93045.0,0.3662]
[1732091441809,0.053677,93052.0,93047.0,0.005]
[1732091442005,0.053677,93052.0,93040.0,0.0331]
[1732091442006,0.06907138,93048.0,93040.0,0.0331]
[1732091442191,0.06907138,93041.0,93038.0,0.3608]
[1732091443905,0.09184,93045.0,93044.0,0.053681]
[1732091444099,0.09184,93045.0,93044.0,0.12275238]
[1732091444707,0.09184,93045.0,93044.0,0.053681]
[1732091444912,0.0327,93051.0,93045.0,0.05368]
[1732091445098,0.0327,93051.0,93050.0,0.3608]
[1732091445299,0.09184,93051.0,93050.0,0.3608]
[1732091445505,0.09184,93052.0,93050.0,0.3608]
[1732091445798,0.09184,93057.0,93052.0,0.053676]
[1732091445998,0.0423591,93060.0,93056.0,0.053674]
[1732091446206,0.09188,93059.0,93057.0,0.053673]
[1732091446412,0.09188,93060.0,93059.0,0.053672]
[1732091447402,0.09188,93060.0,93051.0,0.031]
[1732091447608,0.09188,93060.0,93047.0,0.005]
[1732091447609,0.10346709,93059.0,93047.0,0.0045]
[1732091447906,0.09188,93060.0,93047.0,0.0045]
[1732091447907,0.10346709,93049.0,93047.0,0.0045]
[1732091448303,0.09188,93050.0,93047.0,0.0045]
[1732091448304,0.09188,93050.0,93048.0,0.3608]
[1732091448503,0.09188,93051.0,93048.0,0.3608]
[1732091448712,0.09188,93051.0,93049.0,0.053678]
[1732091450111,0.005,93061.0,93057.0,0.053673]
[1732091450408,0.005,93061.0,93048.0,0.3608]
[1732091450409,0.09188,93060.0,93048.0,0.3608]
[1732091450604,0.053675,93055.0,93048.0,0.3608]
[1732091451107,0.10346709,93056.0,93048.0,0.3608]
[1732091451306,0.10346709,93056.0,93050.0,0.053677]
[1732091451502,0.10346709,93056.0,93048.0,0.3608]
[1732091451726,0.10346709,93056.0,93054.0,0.053675]
[1732091451909,0.09188,93060.0,93054.0,0.053675]
[1732091452112,0.09188,93060.0,93056.0,0.3608]
[1732091452907,0.09188,93060.0,93048.0,0.414479]
[1732091453215,0.10346709,93050.0,93048.0,0.3608]
[1732091453618,0.19534709,93050.0,93048.0,0.3608]
[1732091454015,0.09188,93049.0,93048.0,0.3608]
[1732091456320,0.09188,93049.0,93047.0,0.0045]
[1732091458509,0.145559,93049.0,93047.0,0.0045]
[1732091460206,0.0426627,93056.0,93051.0,0.053677]
[1732091460409,0.09188,93055.0,93047.0,0.058179]
[1732091460626,0.145555,93055.0,93047.0,0.0045]
[1732091461408,0.09188,93055.0,93047.0,0.0045]
[1732091461625,0.053677,93052.0,93047.0,0.0045]
[1732091463808,0.09188,93055.0,93047.0,0.0045]
[1732091463809,0.10346709,93050.0,93047.0,0.0045]
[1732091464013,0.053678,93049.0,93047.0,0.0045]
[1732091467239,0.3608,93048.0,93047.0,0.0045]
[1732091467732,0.05368,93047.0,93026.0,0.053691]
[1732091467935,0.10346709,93036.0,93026.0,0.053691]
[1732091468131,0.0956,93035.0,93026.0,0.053691]
[1732091468350,0.0956,93035.0,93028.0,0.05369]
[1732091470337,0.0956,93035.0,93020.0,0.42604]
[1732091470521,0.0956,93035.0,93025.0,0.053692]
[1732091471232,0.0956,93035.0,93026.0,0.053691]
[1732091471431,0.0956,93035.0,93027.0,0.053691]
[1732091471834,0.0956,93034.0,93020.0,0.42604]
[1732091472018,0.0956,93034.0,93033.0,0.414487]
[1732091472722,0.10346709,93036.0,93033.0,0.3608]
[1732091472925,0.0956,93034.0,93033.0,0.3608]
[1732091474931,0.03554752,93034.0,93033.0,0.3608]
[1732091475527,0.03554752,93034.0,93033.0,0.55245636]
[1732091476239,0.04195631,93042.0,93033.0,0.3608]
[1732091476439,0.09564,93043.0,93041.0,0.053683]
[1732091476742,0.09564,93043.0,93034.0,0.0319]
[1732091476743,0.09564,93045.0,93040.0,0.19165636]
[1732091477043,0.09564,93045.0,93044.0,0.053681]
[1732091477336,0.04232578,93048.0,93041.0,0.4224]
[1732091477337,0.09564,93048.0,93047.0,0.053679]
[1732091477637,0.04252341,93055.0,93045.0,0.3608]
[1732091477830,0.09564,93056.0,93054.0,0.3608]
[1732091478138,0.09564,93056.0,93055.0,0.053675]
[1732091480229,0.18871326,93056.0,93055.0,0.053675]
[1732091480829,0.09307326,93056.0,93055.0,0.053675]
[1732091481138,0.18867326,93056.0,93055.0,0.053675]
[1732091481342,0.09307326,93056.0,93055.0,0.053675]
[1732091481739,0.20171574,93056.0,93045.0,0.3608]
[1732091481940,0.20171574,93056.0,93041.0,0.0666]
[1732091481941,0.10346709,93046.0,93041.0,0.005]
[1732091482136,0.053682,93044.0,93034.0,0.053686]
[1732091482326,0.22507476,93038.0,93034.0,0.053686]
[1732091482533,0.0956,93037.0,93034.0,0.053686]
[1732091482840,0.0956,93037.0,93029.0,0.3608]
[1732091483143,0.0956,93037.0,93036.0,0.053686]
[1732091483348,0.0956,93041.0,93040.0,0.053683]
[1732091483540,0.0956,93045.0,93040.0,0.3608]
[1732091483841,0.0956,93045.0,93044.0,0.053681]
[1732091484031,0.19088811,93045.0,93044.0,0.053681]
[1732091485130,0.09528811,93045.0,93044.0,0.053681]
[1732091485531,0.32067476,93049.0,93047.0,0.053679]
[1732091485731,0.0956,93049.0,93048.0,0.3608]